[Event "Almaty Open 2019"]
[Site "Almaty"]
[Date "2019.10.14"]
[Round "9.2"]
[White "Harutyunian, Tigran K."]
[Black "Igambergenov, Alibek"]
[Result "1-0"]
[ECO "E18"]
[WhiteElo "2535"]
[BlackElo "2402"]
[Annotator "RC"]
[PlyCount "105"]
[EventDate "2019.10.07"]
[EventType "swiss"]
[EventCountry "KAZ"]
[SourceTitle "playchess.com"]
[Source "ChessBase"]
[SourceQuality "1"]
[TimeControl "5400+30"]

1. d4 {[%emt 0:00:00]} Nf6 {[%emt 0:00:00]} 2. Nf3 {[%emt 0:00:29]} e6 {[%emt 0:00:51]} 3. c4 {[%emt 0:00:11]} b6 {[%emt 0:02:07]} 4. g3 {[%emt 0:00:46]} Bb7 {[%emt 0:00:11]} 5. Bg2 {[%emt 0:00:08]} Be7 {[%emt 0:00:04]} 6. O-O {[%emt 0:00:24]} O-O {[%emt 0:00:04]} 7. Nc3 {[%emt 0:02:34]} Ne4 {[%emt 0:00:11]} 8. Bd2 {[%emt 0:00:09]} d5 {[%emt 0:00:05]} 9. cxd5 {[%emt 0:01:20]} exd5 {[%emt 0:00:04]} 10. Rc1 {[%emt 0:00:16]} Nd7 {[%emt 0:00:43]} 11. Bf4 {[%emt 0:00:33]} Ndf6 {[%emt 0:03:17]} 12. Bxc7 {[%emt 0:02:38]} Qe8 {[%emt 0:05:55]} 13. Bf4 {[%emt 0:03:04]} Nxc3 {[%emt 0:00:14]} 14. Rxc3 {[%emt 0:00:35]} Ne4 {[%emt 0:01:14]} 15. Rc7 {[%emt 0:01:47]} Ba6 {[%emt 0:00:08]} 16. Nd2 {[%emt 0:01:45]} Bd6 {[%emt 0:04:39]} 17. Bxd6 {[%emt 0:02:53]} Nxd6 {[%emt 0:00:04]} 18. Re1 {[%emt 0:06:14]} Nb5 {[%emt 0:02:26]} 19. Rc1 {[%emt 0:00:15]} Nxd4 {[%emt 0:00:05]} 20. e3 {[%emt 0:01:10]} Ne6 {[%emt 0:01:02]} 21. Bxd5 {[%emt 0:00:51]} Rd8 {[%emt 0:00:07]} 22. e4 {[%emt 0:01:48]} Nc5 {[%emt 0:03:07]} 23. Re3 {[%emt 0:00:29]} Qe5 {[%emt 0:21:54]} 24. Rcc3 {[%emt 0:04:27]} Rxd5 {[%emt 0:01:52]} 25. exd5 {[%emt 0:00:32]} Qxd5 {[%emt 0:00:03]} 26. Qc2 {[%emt 0:01:49]} Rd8 {[%emt 0:05:22]} 27. Nf3 {[%emt 0:04:13]} h6 {[%emt 0:15:07]} 28. b4 {[%emt 0:02:53]} Ne6 {[%emt 0:00:51]} 29. a4 {[%emt 0:21:59]} Qh5 {[%emt 0:08:17]} 30. Qe4 {[%emt 0:03:22]} Rd7 {[%emt 0:00:13]} 31. h4 {[%emt 0:14:54]} Bb7 {[%emt 0:03:11]} 32. g4 {[%emt 0:00:29]} Bxe4 {[%emt 0:04:38]} 33. gxh5 {[%emt 0:00:05]} Rd1+ {[%emt 0:01:43]} 34. Kh2 {[%emt 0:00:31]} f5 {[%emt 0:00:04]} 35. Re1 {[%emt 0:02:22]} Rd5 {[%emt 0:04:22]} 36. Ng1 {[%emt 0:03:42]} Rd4 {[%emt 0:03:11]} 37. f3 {[%emt 0:02:56]} Bd5 {[%emt 0:00:03]} 38. Re5 {[%emt 0:01:35]} Nf4 {[%emt 0:06:46]} 39. Rxf5 {[%emt 0:01:46]} Be6 {[%emt 0:00:12]} 40. Re5 {[%emt 0:00:20]} Rxb4 {[%emt 0:00:03]} 41. Kg3 {[%emt 0:01:47]} Bf7 {[%emt 0:03:01]} 42. Re4 {[%emt 0:01:19]} Nxh5+ {[%emt 0:00:05]} 43. Kf2 {[%emt 0:00:14]} Rb2+ {[%emt 0:00:04]} 44. Ne2 {[%emt 0:00:12]} a5 {[%emt 0:01:55]} 45. Re7 {[%emt 0:01:41]} Bg6 {[%emt 0:01:03]} 46. Ke3 {[%emt 0:00:52]} Rb4 {[%emt 0:01:07]} 47. Nd4 {[%emt 0:00:12]} Nf6 {[%emt 0:00:10]} 48. Rc8+ {[%emt 0:00:17]} Kh7 {[%emt 0:00:01]} 49. Rd8 {[%emt 0:00:20]} Ng8 {[%emt 0:01:57]} 50. Rb7 {[%emt 0:00:26]} Rb1 {[%emt 0:00:16]} 51. Rdd7 {[%emt 0:00:38]} Kh8 {[%emt 0:00:10]} 52. Rxg7 {[%emt 0:00:13]} Rg1 {[%emt 0:00:05]} 53. h5 {[%emt 0:00:40]} 1-0

[Event "Almaty Open 2019"]
[Site "Almaty"]
[Date "2019.10.14"]
[Round "9.3"]
[White "Utegaliyev, Azamat"]
[Black "Kostenko, Petr"]
[Result "0-1"]
[ECO "C00"]
[WhiteElo "2503"]
[BlackElo "2462"]
[Annotator "RC"]
[PlyCount "74"]
[EventDate "2019.10.07"]
[EventType "swiss"]
[EventCountry "KAZ"]
[SourceTitle "playchess.com"]
[Source "ChessBase"]
[SourceQuality "1"]
[TimeControl "5400+30"]

1. e4 {[%emt 0:00:00]} e6 {[%emt 0:06:48]} 2. d4 {[%emt 0:00:00]} d5 {[%emt 0:00:05]} 3. Bd3 {[%emt 0:00:13]} dxe4 {[%emt 0:00:26]} 4. Bxe4 {[%emt 0:00:06]} Nf6 {[%emt 0:00:03]} 5. Bf3 {[%emt 0:00:10]} Be7 {[%emt 0:00:04]} 6. Ne2 {[%emt 0:00:53]} O-O {[%emt 0:00:10]} 7. Nbc3 {[%emt 0:02:04]} c5 {[%emt 0:00:14]} 8. O-O {[%emt 0:00:08]} cxd4 {[%emt 0:01:01]} 9. Qxd4 {[%emt 0:00:41]} Qa5 {[%emt 0:04:37]} 10. Bd2 {[%emt 0:23:58]} Nc6 {[%emt 0:00:14]} 11. Bxc6 {[%emt 0:03:47]} bxc6 {[%emt 0:00:05]} 12. Qa4 {[%emt 0:01:22]} Qc7 {[%emt 0:00:47]} 13. Ne4 {[%emt 0:05:02]} Nd5 {[%emt 0:03:17]} 14. c4 {[%emt 0:04:41]} Nb6 {[%emt 0:00:26]} 15. Qa5 {[%emt 0:00:51]} c5 {[%emt 0:01:20]} 16. b3 {[%emt 0:03:26]} Bb7 {[%emt 0:01:29]} 17. N4c3 {[%emt 0:00:48]} Bd6 {[%emt 0:04:26]} 18. Ng3 {[%emt 0:02:19]} h5 {[%emt 0:12:09]} 19. Nb5 {[%emt 0:04:10]} Qc6 {[%emt 0:00:11]} 20. f3 {[%emt 0:00:05]} h4 {[%emt 0:00:19]} 21. Ne4 {[%emt 0:02:17]} Be7 {[%emt 0:06:24]} 22. h3 {[%emt 0:04:41]} f5 {[%emt 0:03:18]} 23. Nf2 {[%emt 0:00:56]} a6 {[%emt 0:00:27]} 24. Nc3 {[%emt 0:01:49]} Rad8 {[%emt 0:00:58]} 25. Rfd1 {[%emt 0:03:42]} Nd7 {[%emt 0:09:12]} 26. Qa4 {[%emt 0:01:04]} Qc7 {[%emt 0:00:42]} 27. Ne2 {[%emt 0:00:18]} Ne5 {[%emt 0:00:28]} 28. Ba5 {[%emt 0:08:36]} Rxd1+ {[%emt 0:05:09]} 29. Rxd1 {[%emt 0:00:04]} Qb8 {[%emt 0:02:09]} 30. Nd3 {[%emt 0:04:26]} Bc6 {[%emt 0:06:22]} 31. Qa3 {[%emt 0:00:09]} Nxd3 {[%emt 0:00:34]} 32. Rxd3 {[%emt 0:00:01]} e5 {[%emt 0:02:21]} 33. Rd1 {[%emt 0:00:52]} Rf6 {[%emt 0:00:22]} 34. Nc3 {[%emt 0:02:07]} e4 {[%emt 0:00:29]} 35. fxe4 {[%emt 0:05:53]} fxe4 {[%emt 0:00:16]} 36. Ne2 {[%emt 0:15:49]} e3 {[%emt 0:04:40]} 37. b4 {[%emt 0:00:12]} Qe5 {[%emt 0:00:40]} 0-1

[Event "Almaty Open 2019"]
[Site "Almaty"]
[Date "2019.10.14"]
[Round "9.4"]
[White "Smirnov, Pavel"]
[Black "Dzhumaev, Marat"]
[Result "*"]
[ECO "A81"]
[WhiteElo "2556"]
[BlackElo "2428"]
[Annotator "RC"]
[PlyCount "90"]
[EventDate "2019.10.07"]
[EventType "swiss"]
[EventCountry "KAZ"]
[SourceTitle "playchess.com"]
[Source "ChessBase"]
[SourceQuality "1"]
[TimeControl "5400+30"]

1. d4 {[%emt 0:05:13]} f5 {[%emt 0:03:27]} 2. g3 {[%emt 0:00:07]} Nf6 {[%emt 0:00:19]} 3. Bg2 {[%emt 0:00:06]} g6 {[%emt 0:00:16]} 4. Nf3 {[%emt 0:00:08]} Bg7 {[%emt 0:00:12]} 5. O-O {[%emt 0:00:06]} a5 {[%emt 0:02:39]} 6. c4 {[%emt 0:00:28]} O-O {[%emt 0:00:09]} 7. Nc3 {[%emt 0:01:12]} d6 {[%emt 0:00:08]} 8. b3 {[%emt 0:02:53]} c6 {[%emt 0:03:07]} 9. Bb2 {[%emt 0:00:41]} Na6 {[%emt 0:00:28]} 10. Re1 {[%emt 0:11:17]} Ne4 {[%emt 0:11:04]} 11. Rc1 {[%emt 0:05:14]} Bd7 {[%emt 0:40:38]} 12. Qd3 {[%emt 0:01:21]} Nb4 {[%emt 0:13:55]} 13. Qb1 {[%emt 0:00:09]} Qb6 {[%emt 0:00:44]} 14. a3 {[%emt 0:11:33]} Na6 {[%emt 0:00:45]} 15. Qc2 {[%emt 0:00:03]} Rae8 {[%emt 0:02:49]} 16. e3 {[%emt 0:04:04]} Nf6 {[%emt 0:04:10]} 17. c5 {[%emt 0:06:44]} Qd8 {[%emt 0:00:38]} 18. Na4 {[%emt 0:00:03]} Ne4 {[%emt 0:01:47]} 19. Nd2 {[%emt 0:01:35]} Nxd2 {[%emt 0:00:58]} 20. Qxd2 {[%emt 0:00:04]} Be6 {[%emt 0:01:04]} 21. cxd6 {[%emt 0:09:45]} exd6 {[%emt 0:00:36]} 22. d5 {[%emt 0:04:32]} Bxb2 {[%emt 0:04:10]} 23. Nxb2 {[%emt 0:00:04]} cxd5 {[%emt 0:00:36]} 24. Na4 {[%emt 0:15:50]} b5 {[%emt 0:04:11]} 25. Nc3 {[%emt 0:00:11]} b4 {[%emt 0:00:45]} 26. axb4 {[%emt 0:00:18]} axb4 {[%emt 0:00:06]} 27. Ne2 {[%emt 0:03:48]} Nc5 {[%emt 0:00:20]} 28. Bxd5 {[%emt 0:00:53]} Qf6 {[%emt 0:01:20]} 29. Nf4 {[%emt 0:03:08]} Bf7 {[%emt 0:00:17]} 30. Rcd1 {[%emt 0:01:52]} g5 {[%emt 0:00:44]} 31. Bxf7+ {[%emt 0:00:22]} Qxf7 {[%emt 0:00:08]} 32. Nd5 {[%emt 0:00:05]} Rb8 {[%emt 0:02:16]} 33. Nxb4 {[%emt 0:00:57]} Ne4 {[%emt 0:00:06]} 34. Qd4 {[%emt 0:00:08]} g4 {[%emt 0:00:11]} 35. Nc6 {[%emt 0:01:29]} Rxb3 {[%emt 0:01:10]} 36. Qd5 {[%emt 0:02:42]} Rb2 {[%emt 0:00:12]} 37. Rf1 {[%emt 0:01:37]} Kg7 {[%emt 0:01:01]} 38. Qxf7+ {[%emt 0:02:23]} Rxf7 {[%emt 0:00:33]} 39. Nd4 {[%emt 0:00:07]} Kg6 {[%emt 0:00:44]} 40. Ra1 {[%emt 0:02:04]} Rc7 {[%emt 0:00:34]} 41. Ra8 {[%emt 0:00:44]} Rc5 {[%emt 0:00:19]} 42. Rg8+ {[%emt 0:00:37]} Kf7 {[%emt 0:00:07]} 43. Ra8 {[%emt 0:00:46]} Kg6 {[%emt 0:00:16]} 44. Rg8+ {[%emt 0:00:04]} Kf7 {[%emt 0:00:11]} 45. Ra8 {[%emt 0:00:22]} Kg6 {[%emt 0:00:27]} *

[Event "Almaty Open 2019"]
[Site "Almaty"]
[Date "2019.10.14"]
[Round "9.5"]
[White "Amanov, Zhanibek"]
[Black "Makhnev, Denis"]
[Result "*"]
[ECO "C48"]
[WhiteElo "2339"]
[BlackElo "2478"]
[Annotator "RC"]
[PlyCount "106"]
[EventDate "2019.10.07"]
[EventType "swiss"]
[EventCountry "KAZ"]
[SourceTitle "playchess.com"]
[Source "ChessBase"]
[SourceQuality "1"]
[TimeControl "5400+30"]

1. e4 {[%emt 0:00:00]} e5 {[%emt 0:00:00]} 2. Nf3 {[%emt 0:00:00]} Nc6 {[%emt 0:00:00]} 3. Nc3 {[%emt 0:00:00]} Nf6 {[%emt 0:00:00]} 4. Bb5 {[%emt 0:00:03]} Bd6 {[%emt 0:00:00]} 5. a3 {[%emt 0:01:22]} a6 {[%emt 0:01:13]} 6. Bc4 {[%emt 0:00:09]} Bc5 {[%emt 0:01:16]} 7. d3 {[%emt 0:03:36]} d6 {[%emt 0:02:11]} 8. Be3 {[%emt 0:05:44]} Bxe3 {[%emt 0:00:56]} 9. fxe3 {[%emt 0:00:21]} Ne7 {[%emt 0:00:29]} 10. O-O {[%emt 0:09:41]} Ng6 {[%emt 0:00:14]} 11. Qe1 {[%emt 0:08:55]} O-O {[%emt 0:00:16]} 12. Nh4 {[%emt 0:00:53]} Nxh4 {[%emt 0:00:25]} 13. Qxh4 {[%emt 0:00:05]} Be6 {[%emt 0:00:04]} 14. Bxe6 {[%emt 0:05:42]} fxe6 {[%emt 0:00:07]} 15. d4 {[%emt 0:00:20]} exd4 {[%emt 0:01:36]} 16. exd4 {[%emt 0:00:12]} e5 {[%emt 0:00:03]} 17. dxe5 {[%emt 0:20:12]} dxe5 {[%emt 0:00:07]} 18. Rad1 {[%emt 0:00:19]} Qe7 {[%emt 0:00:08]} 19. Rf5 {[%emt 0:06:26]} c6 {[%emt 0:04:59]} 20. Qg3 {[%emt 0:02:13]} Rae8 {[%emt 0:02:54]} 21. Rdf1 {[%emt 0:03:27]} g6 {[%emt 0:11:39]} 22. h3 {[%emt 0:01:48]} Kg7 {[%emt 0:00:20]} 23. R5f2 {[%emt 0:11:28]} Qc5 {[%emt 0:02:32]} 24. Kh2 {[%emt 0:01:07]} Nh5 {[%emt 0:02:11]} 25. Qh4 {[%emt 0:00:23]} Rf4 {[%emt 0:00:10]} 26. Rxf4 {[%emt 0:00:26]} exf4 {[%emt 0:00:05]} 27. Rd1 {[%emt 0:05:29]} Re7 {[%emt 0:03:48]} 28. Qg4 {[%emt 0:07:49]} Qe5 {[%emt 0:20:23]} 29. Rd7 {[%emt 0:00:24]} Kf7 {[%emt 0:00:26]} 30. Rxe7+ {[%emt 0:00:30]} Kxe7 {[%emt 0:00:04]} 31. Kg1 {[%emt 0:02:20]} Kd8 {[%emt 0:01:15]} 32. Qd1+ {[%emt 0:01:08]} Kc7 {[%emt 0:00:06]} 33. Qd3 {[%emt 0:00:17]} Qc5+ {[%emt 0:01:35]} 34. Kh2 {[%emt 0:01:01]} Nf6 {[%emt 0:03:24]} 35. b4 {[%emt 0:00:29]} Qe5 {[%emt 0:00:25]} 36. Kg1 {[%emt 0:00:23]} g5 {[%emt 0:00:15]} 37. a4 {[%emt 0:01:35]} b5 {[%emt 0:03:48]} 38. axb5 {[%emt 0:01:09]} axb5 {[%emt 0:00:07]} 39. Kf1 {[%emt 0:00:29]} h5 {[%emt 0:00:13]} 40. Ke2 {[%emt 0:00:06]} g4 {[%emt 0:03:14]} 41. hxg4 {[%emt 0:00:18]} hxg4 {[%emt 0:00:05]} 42. Kd1 {[%emt 0:00:14]} Qd6 {[%emt 0:00:07]} 43. Kc1 {[%emt 0:01:20]} Qxb4 {[%emt 0:07:37]} 44. e5 {[%emt 0:00:11]} Nd7 {[%emt 0:00:03]} 45. e6 {[%emt 0:01:04]} Ne5 {[%emt 0:00:03]} 46. Qh7+ {[%emt 0:00:23]} Kb6 {[%emt 0:00:07]} 47. Qh8 {[%emt 0:01:10]} Qxc3 {[%emt 0:00:09]} 48. Qd8+ {[%emt 0:00:05]} Kb7 {[%emt 0:00:42]} 49. Kd1 {[%emt 0:01:01]} f3 {[%emt 0:00:52]} 50. gxf3 {[%emt 0:00:18]} gxf3 {[%emt 0:00:05]} 51. Qe7+ {[%emt 0:00:49]} Ka6 {[%emt 0:00:05]} 52. Qd8 {[%emt 0:00:11]} Qa1+ {[%emt 0:00:07]} 53. Kd2 {[%emt 0:00:12]} Nc4+ {[%emt 0:00:02]} *

[Event "Almaty Open 2019"]
[Site "Almaty"]
[Date "2019.10.14"]
[Round "9.7"]
[White "Serikbay, Chingiz"]
[Black "Hamitevici, Vladimir"]
[Result "1-0"]
[ECO "A40"]
[WhiteElo "2298"]
[BlackElo "2472"]
[Annotator "RC"]
[PlyCount "123"]
[EventDate "2019.10.07"]
[EventType "swiss"]
[EventCountry "KAZ"]
[SourceTitle "playchess.com"]
[Source "ChessBase"]
[SourceQuality "1"]
[TimeControl "5400+30"]

1. d4 {[%emt 0:00:00]} g6 {[%emt 0:00:00]} 2. Nf3 {[%emt 0:01:28]} Bg7 {[%emt 0:00:00]} 3. Bf4 {[%emt 0:00:25]} d6 {[%emt 0:00:20]} 4. e3 {[%emt 0:00:20]} Nd7 {[%emt 0:00:27]} 5. h3 {[%emt 0:00:13]} e5 {[%emt 0:00:22]} 6. Bh2 {[%emt 0:00:04]} Ne7 {[%emt 0:00:27]} 7. Be2 {[%emt 0:02:06]} O-O {[%emt 0:00:19]} 8. O-O {[%emt 0:00:18]} b6 {[%emt 0:01:01]} 9. c4 {[%emt 0:02:04]} Bb7 {[%emt 0:00:35]} 10. Nc3 {[%emt 0:03:01]} Nf5 {[%emt 0:01:33]} 11. Rc1 {[%emt 0:06:23]} Re8 {[%emt 0:00:34]} 12. Re1 {[%emt 0:06:19]} Rc8 {[%emt 0:05:11]} 13. d5 {[%emt 0:06:14]} a5 {[%emt 0:00:22]} 14. a3 {[%emt 0:01:34]} Ra8 {[%emt 0:00:09]} 15. b4 {[%emt 0:03:20]} Nh4 {[%emt 0:03:23]} 16. Nd2 {[%emt 0:03:00]} Bh6 {[%emt 0:16:24]} 17. Nb3 {[%emt 0:06:06]} Bc8 {[%emt 0:00:36]} 18. bxa5 {[%emt 0:01:53]} Nc5 {[%emt 0:03:54]} 19. g3 {[%emt 0:08:54]} Nf5 {[%emt 0:02:00]} 20. axb6 {[%emt 0:03:13]} cxb6 {[%emt 0:00:09]} 21. Nxc5 {[%emt 0:02:57]} bxc5 {[%emt 0:00:05]} 22. Nb5 {[%emt 0:00:36]} Ng7 {[%emt 0:16:01]} 23. Bf1 {[%emt 0:01:28]} Re7 {[%emt 0:01:57]} 24. f4 {[%emt 0:12:02]} Ne8 {[%emt 0:00:19]} 25. g4 {[%emt 0:02:12]} Bg7 {[%emt 0:00:21]} 26. Bg3 {[%emt 0:03:39]} exf4 {[%emt 0:09:52]} 27. exf4 {[%emt 0:00:49]} Rxe1 {[%emt 0:06:34]} 28. Qxe1 {[%emt 0:02:05]} Bd7 {[%emt 0:00:43]} 29. Rb1 {[%emt 0:03:05]} Bf6 {[%emt 0:06:12]} 30. Rb3 {[%emt 0:01:12]} Qb6 {[%emt 0:06:23]} 31. Kh1 {[%emt 0:02:23]} Nc7 {[%emt 0:00:58]} 32. Nd4 {[%emt 0:05:06]} Qa6 {[%emt 0:00:14]} 33. Nf3 {[%emt 0:00:23]} Re8 {[%emt 0:00:51]} 34. Qb1 {[%emt 0:00:57]} Bg7 {[%emt 0:11:08]} 35. Kg2 {[%emt 0:01:11]} Qa4 {[%emt 0:02:22]} 36. Rb7 {[%emt 0:03:28]} Na6 {[%emt 0:00:40]} 37. Qb3 {[%emt 0:00:46]} Qxb3 {[%emt 0:00:19]} 38. Rxb3 {[%emt 0:00:01]} Rb8 {[%emt 0:00:01]} 39. Rxb8+ {[%emt 0:00:14]} Nxb8 {[%emt 0:00:01]} 40. f5 {[%emt 0:01:04]} gxf5 {[%emt 0:00:20]} 41. gxf5 {[%emt 0:02:08]} Bf8 {[%emt 0:00:24]} 42. Bd3 {[%emt 0:00:30]} Be7 {[%emt 0:03:54]} 43. f6 {[%emt 0:01:40]} Bxf6 {[%emt 0:00:05]} 44. Bxd6 {[%emt 0:00:01]} Na6 {[%emt 0:00:08]} 45. Ne5 {[%emt 0:00:37]} Bc8 {[%emt 0:01:08]} 46. Nc6 {[%emt 0:00:58]} Kg7 {[%emt 0:00:44]} 47. Ne5 {[%emt 0:02:10]} Bd8 {[%emt 0:00:50]} 48. Bc2 {[%emt 0:00:55]} h5 {[%emt 0:02:11]} 49. Ba4 {[%emt 0:00:21]} Bc7 {[%emt 0:00:40]} 50. Bxc7 {[%emt 0:00:23]} Nxc7 {[%emt 0:00:02]} 51. d6 {[%emt 0:00:50]} Kf6 {[%emt 0:01:00]} 52. d7 {[%emt 0:01:08]} Bb7+ {[%emt 0:00:19]} 53. Kg3 {[%emt 0:01:21]} Ne6 {[%emt 0:00:10]} 54. Nc6 {[%emt 0:00:44]} Bxc6 55. Bxc6 Ke7 {[%emt 0:00:40]} 56. Bd5 {[%emt 0:00:53]} Ng7 {[%emt 0:01:56]} 57. Bxf7 {[%emt 0:00:26]} Kxd7 {[%emt 0:00:01]} 58. Kh4 {[%emt 0:00:30]} Ke7 {[%emt 0:00:07]} 59. Bxh5 {[%emt 0:00:12]} Nf5+ {[%emt 0:00:12]} 60. Kg5 {[%emt 0:00:19]} Nd6 {[%emt 0:00:05]} 61. Be2 {[%emt 0:00:13]} Ke6 {[%emt 0:00:40]} 62. h4 {[%emt 0:00:28] Kd5 h5+} 1-0

[Event "Almaty Open 2019"]
[Site "Almaty"]
[Date "2019.10.14"]
[Round "9.8"]
[White "Urazayev, Arystanbek"]
[Black "Barsov, Alexei"]
[Result "*"]
[ECO "A06"]
[WhiteElo "2420"]
[BlackElo "2365"]
[Annotator "NA RC"]
[PlyCount "107"]
[EventDate "2019.10.07"]
[EventType "swiss"]
[EventCountry "KAZ"]
[SourceTitle "playchess.com"]
[Source "ChessBase"]
[SourceQuality "1"]
[TimeControl "5400+30"]

1. c4 {[%emt 0:00:00]} e6 {[%emt 0:00:16]} 2. Nf3 {[%emt 0:00:11]} d5 {[%emt 0:00:05]} 3. e3 {[%emt 0:00:08]} Nf6 {[%emt 0:00:19]} 4. b3 {[%emt 0:00:36]} c5 {[%emt 0:00:34]} 5. Bb2 {[%emt 0:00:29]} Nc6 {[%emt 0:00:06]} 6. cxd5 {[%emt 0:00:28]} exd5 {[%emt 0:00:05]} 7. Be2 {[%emt 0:00:10]} Bd6 {[%emt 0:01:16]} 8. O-O {[%emt 0:00:08]} O-O {[%emt 0:00:09]} 9. d4 {[%emt 0:00:03]} cxd4 {[%emt 0:03:43]} 10. Nxd4 {[%emt 0:00:46]} Be6 {[%emt 0:09:43]} 11. Nc3 {[%emt 0:10:27]} Rc8 {[%emt 0:03:54]} 12. Rc1 {[%emt 0:01:16]} Bb8 {[%emt 0:01:20]} 13. Na4 {[%emt 0:07:18]} Ne5 {[%emt 0:13:45]} 14. f4 {[%emt 0:05:28]} Rxc1 {[%emt 0:01:59]} 15. Qxc1 {[%emt 0:05:13]} Neg4 {[%emt 0:01:27]} 16. h3 {[%emt 0:03:48]} Nh6 {[%emt 0:00:22]} 17. Nc5 {[%emt 0:04:04]} Qe7 {[%emt 0:30:59]} 18. b4 {[%emt 0:14:17]} Nf5 {[%emt 0:03:47]} 19. Bd3 {[%emt 0:10:26]} Nd6 {[%emt 0:08:15]} 20. Rf3 {[%emt 0:06:35]} Rc8 {[%emt 0:07:55]} 21. Qa1 {[%emt 0:02:20]} Nfe4 {[%emt 0:04:20]} 22. Bxe4 {[%emt 0:08:26]} Nxe4 {[%emt 0:00:07]} 23. Ndxe6 {[%emt 0:02:35]} fxe6 {[%emt 0:00:09]} 24. Nxe4 {[%emt 0:00:35]} dxe4 {[%emt 0:00:01]} 25. Rg3 {[%emt 0:02:12]} g6 {[%emt 0:00:05]} 26. a3 {[%emt 0:00:47]} a5 {[%emt 0:05:22]} 27. bxa5 {[%emt 0:01:22]} Rc5 {[%emt 0:00:06]} 28. Bd4 {[%emt 0:04:12]} Rxa5 {[%emt 0:00:18]} 29. Qb1 {[%emt 0:01:33]} Rxa3 {[%emt 0:01:31]} 30. Qxe4 {[%emt 0:00:14]} Kf7 {[%emt 0:01:05]} 31. Rg5 {[%emt 0:02:02]} Ba7 {[%emt 0:01:22]} 32. Rb5 {[%emt 0:01:08]} Bxd4 {[%emt 0:00:04]} 33. Qxd4 {[%emt 0:01:58]} Ra8 {[%emt 0:00:20]} 34. Qb6 {[%emt 0:00:52]} Rb8 {[%emt 0:01:04]} 35. Kh2 {[%emt 0:00:25]} Qd7 {[%emt 0:00:28]} 36. Rb4 {[%emt 0:01:08]} Qe7 {[%emt 0:00:56]} 37. e4 {[%emt 0:01:07]} Qd7 {[%emt 0:00:32]} 38. Rb5 {[%emt 0:00:59]} Qe7 {[%emt 0:00:16]} 39. Rb3 {[%emt 0:01:52]} Qd7 {[%emt 0:00:07]} 40. Rb4 {[%emt 0:01:09]} Qe7 {[%emt 0:00:06]} 41. e5 {[%emt 0:00:14]} Qd7 {[%emt 0:00:19]} 42. Rb5 {[%emt 0:01:07]} Qe7 {[%emt 0:00:27]} 43. Qa7 {[%emt 0:00:16]} Qc7 {[%emt 0:00:23]} 44. Rc5 {[%emt 0:00:43]} Qd8 {[%emt 0:00:08]} 45. Rc6 {[%emt 0:00:30]} h5 {[%emt 0:02:13]} 46. Rd6 {[%emt 0:00:13]} Qc7 {[%emt 0:00:04]} 47. Qd4 {[%emt 0:00:21]} Ke7 {[%emt 0:00:33]} 48. Qf2 {[%emt 0:00:27]} Kf7 {[%emt 0:00:24]} 49. Qd2 {[%emt 0:00:07]} Qc4 {[%emt 0:00:32]} 50. Rd7+ {[%emt 0:00:41]} Kg8 {[%emt 0:00:05]} 51. Rd4 {[%emt 0:00:43]} Qc5 {[%emt 0:01:25]} 52. Qd3 {[%emt 0:00:13]} Kh7 {[%emt 0:00:18]} 53. Rd7+ {[%emt 0:00:04]} Kh6 {[%emt 0:00:03]} 54. Qg3 {[%emt 0:00:08]} *

[Event "Almaty Open 2019"]
[Site "Almaty"]
[Date "2019.10.14"]
[Round "9.9"]
[White "Khusenkhojaev, Muhammad"]
[Black "Kenzhalin, Nursultan"]
[Result "*"]
[ECO "D45"]
[WhiteElo "2434"]
[BlackElo "2185"]
[Annotator "NA RC"]
[PlyCount "129"]
[EventDate "2019.10.07"]
[EventType "swiss"]
[EventCountry "KAZ"]
[SourceTitle "playchess.com"]
[Source "ChessBase"]
[SourceQuality "1"]
[TimeControl "5400+30"]

1. Nf3 {[%emt 0:07:09]} Nf6 {[%emt 0:00:00]} 2. c4 {[%emt 0:00:09]} c6 {[%emt 0:00:12]} 3. d4 {[%emt 0:02:12]} d5 {[%emt 0:00:05]} 4. e3 {[%emt 0:00:27]} e6 {[%emt 0:01:57]} 5. Nc3 {[%emt 0:00:08]} Nbd7 {[%emt 0:00:32]} 6. Qc2 {[%emt 0:00:06]} Bb4 {[%emt 0:02:26]} 7. Bd3 {[%emt 0:00:41]} O-O {[%emt 0:00:18]} 8. O-O {[%emt 0:00:24]} h6 {[%emt 0:01:07]} 9. Rd1 {[%emt 0:01:35]} Re8 {[%emt 0:02:34]} 10. Bd2 {[%emt 0:02:43]} Qe7 {[%emt 0:01:41]} 11. a3 {[%emt 0:01:10]} Bd6 {[%emt 0:01:02]} 12. e4 {[%emt 0:00:08]} dxe4 {[%emt 0:00:57]} 13. Nxe4 {[%emt 0:00:06]} Nxe4 {[%emt 0:00:05]} 14. Bxe4 {[%emt 0:00:09]} Nf6 {[%emt 0:03:20]} 15. Bd3 {[%emt 0:00:12]} b6 {[%emt 0:00:27]} 16. Re1 {[%emt 0:05:29]} Bb7 {[%emt 0:00:58]} 17. Bc3 {[%emt 0:00:17]} Rad8 {[%emt 0:09:54]} 18. Rad1 {[%emt 0:06:13]} Qc7 {[%emt 0:03:17]} 19. c5 {[%emt 0:00:05]} Bf8 {[%emt 0:00:42]} 20. b4 {[%emt 0:00:36]} Nd5 {[%emt 0:01:17]} 21. Bd2 {[%emt 0:00:06]} Nf6 {[%emt 0:04:23]} 22. g3 {[%emt 0:00:40]} Qc8 {[%emt 0:00:19]} 23. Bc4 {[%emt 0:01:13]} Ba6 {[%emt 0:02:34]} 24. Ba2 {[%emt 0:00:07]} bxc5 {[%emt 0:00:41]} 25. bxc5 {[%emt 0:01:09]} Qc7 {[%emt 0:01:36]} 26. Bb1 {[%emt 0:06:30]} g6 {[%emt 0:04:47]} 27. Bf4 {[%emt 0:00:09]} Qb7 {[%emt 0:04:37]} 28. Ne5 {[%emt 0:02:53]} Nd5 {[%emt 0:03:26]} 29. Bd2 {[%emt 0:00:07]} Bg7 {[%emt 0:01:11]} 30. h4 {[%emt 0:00:48]} Nf6 {[%emt 0:03:31]} 31. Bf4 {[%emt 0:10:44]} Nh5 {[%emt 0:05:40]} 32. Be3 {[%emt 0:00:10]} Rd5 {[%emt 0:03:04]} 33. g4 {[%emt 0:00:44]} Bxe5 {[%emt 0:02:05]} 34. dxe5 {[%emt 0:05:00]} Ng7 {[%emt 0:00:12]} 35. Bxh6 {[%emt 0:02:27]} Red8 {[%emt 0:01:46]} 36. Bg5 {[%emt 0:01:28]} Rxd1 {[%emt 0:04:24]} 37. Rxd1 {[%emt 0:00:04]} Rxd1+ {[%emt 0:00:10]} 38. Qxd1 {[%emt 0:00:05]} Be2 {[%emt 0:03:58]} 39. Qxe2 {[%emt 0:04:16]} Qxb1+ {[%emt 0:00:15]} 40. Kg2 {[%emt 0:00:08]} Qb3 {[%emt 0:02:23]} 41. Qf3 {[%emt 0:00:42]} Qd5 {[%emt 0:00:40]} 42. Qxd5 {[%emt 0:01:19]} exd5 {[%emt 0:00:07]} 43. Be7 {[%emt 0:00:58]} Ne6 {[%emt 0:00:38]} 44. Kg3 {[%emt 0:01:09]} Nd4 {[%emt 0:01:37]} 45. f4 a5 {[%emt 0:01:02]} 46. a4 {[%emt 0:03:53]} Ne2+ {[%emt 0:01:27]} 47. Kf3 {[%emt 0:00:04]} Nc3 {[%emt 0:00:04]} 48. f5 {[%emt 0:00:04]} gxf5 {[%emt 0:00:33]} 49. gxf5 {[%emt 0:00:05]} Nxa4 {[%emt 0:00:19]} 50. e6 {[%emt 0:19:15]} fxe6 {[%emt 0:01:01]} 51. fxe6 {[%emt 0:00:03]} Nc3 {[%emt 0:00:19]} 52. Bf6 {[%emt 0:00:18]} Ne4 {[%emt 0:00:07]} 53. Bd4 {[%emt 0:00:05]} Kf8 {[%emt 0:11:15]} 54. Kf4 {[%emt 0:00:07]} Ke7 {[%emt 0:00:04]} 55. h5 {[%emt 0:00:22]} Kxe6 {[%emt 0:00:27]} 56. h6 {[%emt 0:00:06]} Nf6 {[%emt 0:00:08]} 57. Kg5 {[%emt 0:00:05]} Nh7+ {[%emt 0:00:20]} 58. Kg6 {[%emt 0:00:07]} Nf8+ {[%emt 0:00:17]} 59. Kg7 {[%emt 0:00:09]} Ke7 {[%emt 0:00:25]} 60. Kg8 {[%emt 0:06:09]} a4 {[%emt 0:03:37]} 61. Bg7 {[%emt 0:03:03]} Ng6 {[%emt 0:00:09]} 62. h7 {[%emt 0:00:08]} a3 {[%emt 0:00:53]} 63. Bc3 {[%emt 0:01:07]} Ke6 {[%emt 0:01:43]} 64. Kg7 {[%emt 0:00:05]} Kf5 {[%emt 0:00:02]} 65. Bf6 {Kg5 Bc3} *